Cogmind - Beta 13 @@@ ROGUE MODE // 2024.07.14 @ 13:06:14 Player: Malak Gallen Result: Self-destructed Performance ------------- Evolutions (2) 1000 Regions Visited (4) 800 Robots Destroyed (44) 220 Value Destroyed (1297) 1297 Prototype IDs (4) 80 Alien Tech Used (0) 0 Bonus (57) 57 TOTAL SCORE: 3454 Bonus ------- High Alert Combat Kills 57 Cogmind --------- Core Integrity 358/550 Matter 11/300 Energy 265/265 System Corruption 0% Temperature Hot (236) Movement Treading (240) Ox1 Location -8/Materials Parts ------- > --- POWER (1) -------- Reinforced Ion Engine > --- PROPULSION (3) --- Light Treads > --- UTILITY (4) ------ Medium Storage Unit ECM Suite > --- WEAPON (3) ------- Gauss Rifle Rocket Launcher Rocket Launcher > --- INVENTORY (10) --- Cooled Ion Engine Light Treads Light Treads Cooling System Medium Storage Unit Faulty Experimental Sensor Array Peak State ------------ > --- POWER ------------ Reinforced Ion Engine > --- PROPULSION ------- Light Treads Light Treads Light Treads > --- UTILITY ---------- Medium Storage Unit ECM Suite Hardened Light Armor Plating > --- WEAPON ----------- Assault Rifle Gauss Rifle Rocket Launcher > --- INVENTORY -------- Cooled Ion Engine Light Treads Light Treads Cooling System Medium Storage Unit Experimental Sensor Array Rocket Launcher Rocket Launcher [Rating: 18] Favorites ----------- Power Light Ion Engine Engine Light Ion Engine Propulsion Light Treads Treads Light Treads Wheel Compact Wheel Utility Medium Storage Unit Device ECM Suite Storage Medium Storage Unit Protection Hardened Light Armor Plating Weapon Assault Rifle Energy Cannon Particle Cannon Ballistic Gun Assault Rifle Launcher Rocket Launcher Build | -11 -10 -9 -9 -8 ------- Run | Yrd Mat Mat Min Mat Slots Evolved 4 | . . 2 . 2 Power . | . . . . . Propulsion 1 | . . 1 . . Utility 2 | . . 1 . 1 Weapon 1 | . . . . 1 Parts Attached 28 | 7 4 8 1 8 Power 4 | 2 . 1 . 1 Engine 4 | 2 . 1 . 1 Core . | . . . . . Reactor . | . . . . . Propulsion 7 | 2 2 1 . 2 Treads 5 | . 2 1 . 2 Leg . | . . . . . Wheel 2 | 2 . . . . Hover . | . . . . . Flight . | . . . . . Utility 7 | 1 2 2 1 1 Device 1 | . . 1 . . Storage 2 | 1 1 . . . Processor . | . . . . . Hackware . | . . . . . Protection 4 | . 1 1 1 1 Artifact . | . . . . . Weapon 10 | 2 . 4 . 4 Energy Gun . | . . . . . Energy Cannon 1 | . . . . 1 Ballistic Gun 4 | 2 . 1 . 1 Ballistic Cannon . | . . . . . Launcher 5 | . . 3 . 2 Special Weapon . | . . . . . Impact Weapon . | . . . . . Slashing Weapon . | . . . . . Piercing Weapon . | . . . . . Special Melee Weapon . | . . . . . Unidentified Prototypes . | . . . . . Parts Lost 8 | . 1 . . 7 Power 1 | . . . . 1 Propulsion 3 | . 1 . . 2 Utility 2 | . . . . 2 Weapon 2 | . . . . 2 Highest Loss Streak 5 | . 1 . . 5 To Critical Strikes . | . . . . . Average Slot Usage (%) 97 | . 99 99 100 90 Engine 11 | . 14 11 11 9 Treads 26 | . 21 32 33 26 Wheel 2 | . 6 . . . Device 6 | . . 11 11 9 Storage 11 | . 14 11 11 9 Protection 12 | . 14 11 11 11 Energy Cannon 1 | . . . . 5 Ballistic Gun 17 | . 28 9 11 10 Launcher 6 | . . 12 11 9 Naked Turns . | . . . . . Heaviest Build 39 | 13 21 28 28 39 Greatest Support 60 | 32 40 60 60 60 Greatest Overweight (x) 1 | . 1 . . . Average Overweight (x) . | . . . . . Largest Inventory Capacity 10 | 8 10 10 10 10 Average Capacity 9 | 7 9 10 10 10 Most Carried 10 | 4 7 10 10 10 Average Carried 7 | 2 5 7 9 9 Final Capacity 10 | 8 10 10 10 10 Final Carried 10 | 4 7 10 10 6 Class Distribution -------------------- 77% | Mutant 22% | Tank Dominant Class ---------------- Mutant | -10/Materials Mutant | -9/Materials Mutant | -9/Mines Tank | -8/Materials Resources | -11 -10 -9 -9 -8 ----------- Run | Yrd Mat Mat Min Mat Matter Collected 884 | 252 165 248 81 138 Remotely . | . . . . . Salvage Created 1231 | . 297 366 156 412 Parts 79 | . 12 18 10 39 Haulers Intercepted 1 | . 1 . . . Recyclers Shooed 1 | . . . . 1 Parts Field Recycled . | . . . . . Retrieved Matter . | . . . . . Parts Self-Destructed . | . . . . . Prevented . | . . . . . Kills | -11 -10 -9 -9 -8 ------- Run | Yrd Mat Mat Min Mat Combat Hostiles Destroyed 28 | . 4 6 5 13 Guns 7 | . 4 . 1 2 Cannons 2 | . . . . 2 AOE 19 | . . 6 4 9 Classes Destroyed 10 | . 5 2 2 1 Worker 3 | . 1 . . 2 Builder 6 | . 2 . . 4 Hauler 1 | . 1 . . . Recycler 4 | . 1 2 1 . Watcher 2 | . . 2 . . Swarmer 3 | . . . 3 . Grunt 17 | . 4 3 1 9 Brawler 2 | . . . 1 1 Sentry 4 | . . 3 . 1 Hunter 2 | . . . . 2 Best Kill Streak 10 | . 2 7 3 10 Combat Bots Only 6 | . 1 4 3 6 Max Kills in Single Turn 5 | . 2 2 3 5 Gunslinging . | . . . . . Exploded 3 | . . 2 3 2 Melee . | . . . . . Uniques/NPCs Destroyed . | . . . . . Combat | -11 -10 -9 -9 -8 -------- Run | Yrd Mat Mat Min Mat Hostile Shots Fired 122 | . 26 10 1 85 Missed 26 | . 5 3 . 18 Damage Taken 1760 | . 297 144 11 1308 Core 249 | . 57 . . 192 Absorbed by Shields . | . . . . . Redirected to Shielding 54 | . . . . 54 Core Remaining (%) 92 | 100 77 . 100 . Volleys Fired 73 | . 29 11 4 29 Largest 3 | . 2 2 2 3 Hottest 121 | . 40 66 53 121 Shots Fired 160 | . 58 22 8 72 Gun 104 | . 58 7 4 35 Cannon 12 | . . . . 12 Launcher 44 | . . 15 4 25 Special . | . . . . . Kinetic 104 | . 58 7 4 35 Thermal 12 | . . . . 12 Explosive 44 | . . 15 4 25 Electromagnetic . | . . . . . Robot Hit Streak 8 | . 8 3 4 4 Robot Miss Streak 6 | . 6 2 3 5 Penetration Max . | . . . . . Secondary Targets . | . . . . . Shots Hit Robots 70 | . 32 6 2 30 Core Hits 90 | . 19 18 7 46 Critical Kills . | . . . . . Critical Parts Destroyed 1 | . 1 . . . Critical Strikes 1 | . 1 . . . Destroy 1 | . 1 . . . Melee Attacks . | . . . . . Impact . | . . . . . Slashing . | . . . . . Piercing . | . . . . . Sneak Attacks . | . . . . . Combat Hostiles . | . . . . . Follow-up Attacks . | . . . . . Damage Inflicted 3073 | . 383 520 336 1834 Guns 659 | . 357 49 22 231 Cannons 144 | . . . . 144 Explosions 2219 | . . 462 314 1443 Melee . | . . . . . Ramming 51 | . 26 9 . 16 Kinetic 659 | . 357 49 22 231 Thermal 201 | . . . . 201 Explosive 2162 | . . 462 314 1386 Electromagnetic . | . . . . . Impact . | . . . . . Slashing . | . . . . . Piercing . | . . . . . Highest Corruption 2 | . . 2 2 . Average Corruption 2 | . . 2 2 . Corruption Purged . | . . . . . Corruption Blocked . | . . . . . Effects 4 | . . 2 2 . Energy Discharges 1 | . . 1 . . Parts Fused 1 | . . . 1 . Data Loss (minor) 1 | . . . 1 . Misfires 1 | . . 1 . . Overload Shots . | . . . . . Overflow Damage 10 | . . . . 10 Projectiles . | . . . . . Explosions 10 | . . . . 10 Melee . | . . . . . Knockbacks . | . . . . . Impact . | . . . . . Kinetic . | . . . . . Secondary . | . . . . . Self-Inflicted Damage 343 | . . 46 . 297 Shots 10 | . . 2 . 8 Rammed 11 | . 5 1 . 5 Targets Rammed 14 | . 8 1 . 5 Kicked . | . . . . . Crushed 3 | . 3 . . . Highest Temperature 610 | . 140 12 1 610 Average Temperature 140 | . 44 7 1 223 Received Heat Transfer 792 | . 219 36 6 531 Effects 5 | . . . . 5 Shutdowns 2 | . . . . 2 Energy Bleed 1 | . . . . 1 Interference 1 | . . . . 1 Damage (minor) 1 | . . . . 1 Siege Activations . | . . . . . Robots Corrupted . | . . . . . Combat Hostiles . | . . . . . Parts Fried . | . . . . . Impact Corruptions . | . . . . . Robots Melted . | . . . . . Combat Hostiles . | . . . . . Parts Melted . | . . . . . Heat Transferred 309 | . . . . 309 Parts Sabotaged . | . . . . . Parts Stolen . | . . . . . Parts Stripped . | . . . . . Power Chain Reactions . | . . . . . Alert | -11 -10 -9 -9 -8 ------- Run | Yrd Mat Mat Min Mat Peak Influence 529 | . 188 365 325 529 Initial 142 | . . 13 142 126 Average 168 | . 77 191 255 262 Maximum Alert Level 2 | . . 1 1 2 Low Security (%) 67 | 100 100 56 . 57 Level 1 23 | . . 43 100 8 Level 2 9 | . . . . 34 Level 3 . | . . . . . Level 4 . | . . . . . Level 5 . | . . . . . High Security . | . . . . . Max Security . | . . . . . Squads Dispatched 6 | . . 1 . 5 Investigation . | . . . . . Extermination . | . . . . . Reinforcement 5 | . . 1 . 4 Assault . | . . . . . Garrison 1 | . . . . 1 Intercept . | . . . . . Searches Triggered . | . . . . . Construction Impeded 3 | . . 1 . 2 Haulers Reinforced . | . . . . . Active Scanning Responses . | . . . . . Cargo Convoy Interrupts . | . . . . . Stealth | -11 -10 -9 -9 -8 --------- Run | Yrd Mat Mat Min Mat Distress Signals 5 | . 1 . . 4 Communications Jammed . | . . . . . Distress Signals . | . . . . . Times Spotted 46 | . 11 8 2 25 Peak Tracking Total 11 | . 5 3 2 11 Tactical Retreats 2 | . 1 . . 1 Traps | -11 -10 -9 -9 -8 ------- Run | Yrd Mat Mat Min Mat Traps Triggered 1 | . . 1 . . Indirectly . | . . . . . Trap Hack Attempts . | . . . . . Triggered . | . . . . . Disarmed . | . . . . . Reprogrammed . | . . . . . Reused . | . . . . . Traps Extracted . | . . . . . Installed . | . . . . . Triggered . | . . . . . Machines | -11 -10 -9 -9 -8 ---------- Run | Yrd Mat Mat Min Mat Machines Disabled 8 | . . 3 2 3 Max in Single Turn 3 | . . 2 2 3 Machines Repaired . | . . . . . Machines Dismantled . | . . . . . Machines Sabotaged . | . . . . . Overloaded Fab Kills . | . . . . . Hacking | -11 -10 -9 -9 -8 --------- Run | Yrd Mat Mat Min Mat Machines Accessed 10 | . 6 1 . 3 Terminals 10 | . 6 1 . 3 Fabricators . | . . . . . Repair Stations . | . . . . . Recycling Units . | . . . . . Scanalyzers . | . . . . . Garrison Access . | . . . . . Total Hacks 44 | . 29 3 . 12 Successful 15 | . 11 1 . 3 Failed 29 | . 18 2 . 9 Catastrophic 3 | . 1 . . 2 Database Lockouts . | . . . . . Manual 20 | . 16 . . 4 Terminals 44 | . 29 3 . 12 Fabricators . | . . . . . Repair Stations . | . . . . . Recycling Units . | . . . . . Scanalyzers . | . . . . . Garrison Access . | . . . . . Terminal Hacks 15 | . 11 1 . 3 Prototype ID Bank 2 | . . 1 . 1 Branch Access Points 1 | . 1 . . . Emergency Access Points 2 | . 1 . . 1 Alert Level 1 | . 1 . . . Locate Traps 2 | . 2 . . . Dispatch Records 1 | . 1 . . . Transport Status 1 | . 1 . . . Hauler Manifests 2 | . 2 . . . Registered Prototypes 1 | . 1 . . . Zone Layout 2 | . 1 . . 1 Fabricator Hacks . | . . . . . Repair Station Hacks . | . . . . . Recycling Unit Hacks . | . . . . . Scanalyzer . | . . . . . Garrison Access Hacks . | . . . . . Unauthorized Hacks . | . . . . . Terminals . | . . . . . Fabricators . | . . . . . Repair Stations . | . . . . . Recycling Units . | . . . . . Scanalyzers . | . . . . . Garrison Access . | . . . . . Data Cores Recovered . | . . . . . Used . | . . . . . Hacking Detections 10 | . 6 1 . 3 Full Trace Events 2 | . 1 . . 1 Feedback Events . | . . . . . Feedback Blocked . | . . . . . Robot Schematics Acquired . | . . . . . Robots Built . | . . . . . Authchips . | . . . . . Time . | . . . . . Total Robot Build Rating . | . . . . . Part Schematics Acquired . | . . . . . Parts Built . | . . . . . Authchips . | . . . . . Time . | . . . . . Total Part Build Rating . | . . . . . Parts Repaired . | . . . . . Time . | . . . . . Parts Recycled . | . . . . . Recycled Matter . | . . . . . Retrieved Matter . | . . . . . Retrieved Components . | . . . . . Parts Scanalyzed . | . . . . . Part Schematics Acquired . | . . . . . Parts Damaged . | . . . . . Bothacking | -11 -10 -9 -9 -8 ------------ Run | Yrd Mat Mat Min Mat Used RIF Installer . | . . . . . Robots Hacked . | . . . . . Non-combat . | . . . . . Combat . | . . . . . Robot Hacks Applied . | . . . . . Relay Couplers Released . | . . . . . Fabnet Peak Effective % . | . . . . . Robots Rewired . | . . . . . Allies Hacked . | . . . . . Hacks Repelled . | . . . . . Allies | -11 -10 -9 -9 -8 -------- Run | Yrd Mat Mat Min Mat Total Allies . | . . . . . Largest Group . | . . . . . Highest-Rated Group . | . . . . . Highest-Rated Ally . | . . . . . Total Orders . | . . . . . Ally Attacks . | . . . . . Total Damage . | . . . . . Kills . | . . . . . Allies Corrupted . | . . . . . Allies Melted . | . . . . . Intel | -11 -10 -9 -9 -8 ------- Run | Yrd Mat Mat Min Mat Robot Analysis Total . | . . . . . Derelict Logs Recovered 1 | . . . 1 . Drone Launches . | . . . . . Drone Recoveries . | . . . . . Exploration | -11 -10 -9 -9 -8 ------------- Run | Yrd Mat Mat Min Mat Turns Passed 1629 | 62 616 303 213 435 Spaces Moved 878 | 48 347 155 124 204 Core 1 | 1 . . . . Treads 751 | . 268 155 124 204 Legs . | . . . . . Wheels 126 | 47 79 . . . Hover . | . . . . . Flight . | . . . . . Fastest Speed 50 | 50 100 160 160 160 Average Speed 151 | 98 147 160 160 160 Slowest Speed 240 | 100 240 160 160 160 Overloaded Moves . | . . . . . Propulsion Burnouts . | . . . . . Robots Hopped . | . . . . . Cave-ins Triggered . | . . . . . Exploration Rate (%) 33 | 4 68 23 41 29 Regions Visited 4 Branch Regions 1 Pre-discovered Areas . | . . . . . Known Exits Taken . | . . . . . Unknown Exits Taken 4 | 1 1 1 1 . Scrap Searched 1 | . . . 1 . Spaces Dug . | . . . . . Terrain Destroyed 271 | . . 85 33 153 Melee . | . . . . . Projectile 1 | . . . . 1 AOE 270 | . . 85 33 152 Terrain Rammed . | . . . . . Walls Destroyed . | . . . . . Machines Disabled . | . . . . . Actions | -11 -10 -9 -9 -8 --------- Run | Yrd Mat Mat Min Mat Total 1027 | 58 396 190 132 251 Wait 1 | . 1 . . . Move 874 | 47 346 154 123 204 Hop . | . . . . . Pick Up 20 | 4 5 8 2 1 Fast Attach 12 | 6 1 3 . 2 Attach 9 | . 2 2 1 4 Detach 3 | . 1 2 . . Swap 7 | 1 1 3 . 2 Drop 14 | . 2 6 2 4 Fire 73 | . 29 11 4 29 Melee . | . . . . . Ram . | . . . . . Kick . | . . . . . Crush 14 | . 8 1 . 5 Escape Stasis . | . . . . . Rewire . | . . . . . Trap . | . . . . . Miscellaneous . | . . . . . Route ------- -11/Scrapyard -10/Materials (discovered 4 exits: *Mat x3 / Min) -9/Materials -9/Mines -8/Materials (discovered 1 exit: [*Sto]) History --------- Turn | Location | Event 21 | -11/Scrapyard | Discovered new exit (range 16) 63 | -11/Scrapyard | Entered Materials 182 | -10/Materials | Discovered new exit (range 5) 244 | -10/Materials | Identified exit to Mines 315 | -10/Materials | Build established: Mutant 382 | -10/Materials | Discovered new exit (range 5) 609 | -10/Materials | Discovered new exit (range 15) 663 | -10/Materials | Derelicts attacked the area 679 | -10/Materials | Entered another Materials area 679 | -9/Materials | Evolved 2 slots: Propulsion x1, Utility x1 963 | -9/Materials | Discovered new exit (range 8) 982 | -9/Materials | Entered Mines 1021 | -9/Mines | Met a Derelict bent on vengeance 1051 | -9/Mines | Learned location of 1 exit from Lower Caves 1146 | -9/Mines | Discovered new exit (range 13) 1165 | -9/Mines | Found a damaged Exp. Sensor Array with a note attached 1169 | -9/Mines | Found Prototype Device 1195 | -9/Mines | Entered Materials 1195 | -8/Materials | Evolved 2 slots: Utility x1, Weapon x1 1474 | -8/Materials | Discovered new exit (range 15) 1597 | -8/Materials | Garrison activated, responded to threat 1630 | -8/Materials | Self-destructed Last Messages --------------- 01615_ Lgt. Treads destroyed. 01617_ Acquired 10 matter. 01618_ U-05 Engineer lays Concrete. 01618_ Hrd. Light Armor Plating destroyed. 01618_ G-47 Trooper destroyed. 01619_ U-05 Engineer lays Concrete. 01621_ Acquired 5 matter. 01622_ The unstable cave ceiling collapses. 01623_ U-05 Engineer lays Concrete. 01623_ Acquired 9 matter. 01624_ U-05 Engineer lays Concrete. 01625_ ALERT: Construction progress impeded, dispatching reinforcements to local area. 01626_ The unstable cave ceiling collapses. 01626_ K-01 Serf collects debris. 01626_ U-05 Engineer lays Concrete. 01627_ Critical hit (Burn: +37). 01627_ U-05 Engineer lays Concrete. 01629_ Lgt. Treads destroyed. 01630_ U-05 Engineer lays Concrete. Map ----- +----------------------------------------------------+ | ??????????????????? """ """ # # """#??##% | | ????????????????????????"" """ + """#??## | | ?????????????????????????" """ # # [ """#???# | | ?????????????????????????? # # #???# | | ??????????????????????????####?# # #???# | | ???????????????????????????????# ########???# | | ???????????????????????????????# #??????????# | | ???????????????????????????????# #??????????# | | ???????????????????????????????# #??????????+ | | ???????????????????????????????# #??????????# | | ???????????????????????????????# #????????### | | ???????????????????????????????# #????????# | | ???????????????????????????????# #????????# | | ???????????????????????????????# #????????# | | ???????????????????????????????# #????????# T | | ?????????????????###+########### #????????# | | ????????????###### #????????# | | ????????????? t #????????# | | ???????????? " #????????# | | ????????????? "G" u #????????# | | ?????????????????# " "u #????????# | | ???????????????????##k g w#####????# | | ???????????????????# Ygg gg | | ???????????????????# | | ???????????????????# # u | | ???????????????????# @ ########### | | ???????????????????##; * #?????????# | | ???????????????????# ; #?????????# | | ???????????????????#;; ! #?????????? | | ?????????????????? #?????????? | | ????????????????""" ! ! #?????????? | | ????????????????""" w *%% #?????????? | | ????????????????""" # ######?????????? | | ???????????????? ?????????????? | | ????????????????### ????????????? | | ?????????????????? ????????????? | | ????????????????? ?????????????? | | ???????????????? ??????????????? | | ?????????????????? #????????????????? | | ?????????????????????+;; ;;;???????????????????? | | ???????????????????????; ?????????????????????? | | ?????????????????????????????????????????????????? | | ?????????????????????????????????????????????????? | | ?????????????????????????????????????????????????? | | ?????????????????????????????????????????????????? | | ?????????????????????????????????????????????????? | | ?????????????????????????????????????????????????? | | ?????????????????????????????????????????????????? | | ?????????????????????????????????????????????????? | | ?????????????????????????????????????????????????? | +----------------------------------------------------+ Best States ------------- Heat Dissipation 31 Energy Generation 12 Energy Capacity 265 Matter Stores 300 Matter Capacity 300 Sight Range 16 Terrain Scan Density 10 ECM Strength 1 Armor Coverage 150 Weapon Shielding 33 Evasion (%) 40 Recoil Reduction 3 Item Schematics ----------------- None Robot Schematics ------------------ None Fabricated ------------ Nothing Alien Tech Used ----------------- None Achievements -------------- Let's See Who's Tougher Remodeling Challenges ------------ None Game ------ Seed AbsorptionPotentialShredder Manual? 0 Play Time 00:25:06 Cumulative 16.9 hours Start 2024.07.14 @ 12:36:10 End 2024.07.14 @ 13:06:14 Sessions 1 Manual Loads 0 Difficulty Rogue Special Mode None Game No. 15 Rogue 15 Adventurer 0 Explorer 0 Win Type - Total 0 Types 0/0/0/0/0/0/0/0/0 Lore% 12 Gallery% 20 Achievement% 18 Wizard Run 0 Options --------- Layout 1 ASCII 1 Keyboard 1 Movement Numpad Keybinds 0 Fullscreen 1 Font 24/Cog Map View 50x35 Zoom Use 0% Tactical HUD 1 Map Filters NONE Filters NONE Steam 1 RUN: 9bbd12f8-895a-4378-9993-8df89437e66a